[Event "Schack-SM 2023: Junior-SM"]
[Site "Helsingborg Arena, Mellersta Stenbocksgatan 14, Helsingborg, Sweden"]
[Date "2023.07.03"]
[Round "3.5"]
[White "Strom-Engdahl, Alexander"]
[Black "Lindholm, Gustav"]
[Result "1/2-1/2"]
[TimeControl "90 minutes for 40 moves + 30 minutes for the rest of the game + 30 seconds per move from move one."]
[WhiteElo "2120"]
[BlackElo "2155"]

1. e4 {[%clk 01:30:57]} {[%emt 00:00:03]} c5 {[%clk 01:30:56]} {[%emt
00:00:04]} 2. Nf3 {[%clk 01:31:21]} {[%emt 00:00:06]} d6 {[%clk 01:31:23]}
{[%emt 00:00:04]} 3. Bb5+ {[%clk 01:31:45]} {[%emt 00:00:06]} Nd7 {[%clk
01:31:39]} {[%emt 00:00:14]} 4. a4 {[%clk 01:31:56]} {[%emt 00:00:19]} a6
{[%clk 01:29:30]} {[%emt 00:02:39]} 5. Be2 {[%clk 01:32:15]} {[%emt 00:00:11]}
Ngf6 {[%clk 01:29:04]} {[%emt 00:00:55]} 6. Nc3 {[%clk 01:32:33]} {[%emt
00:00:12]} g6 {[%clk 01:27:53]} {[%emt 00:01:42]} 7. O-O {[%clk 01:31:40]}
{[%emt 00:01:23]} Bg7 {[%clk 01:28:15]} {[%emt 00:00:07]} 8. a5 {[%clk
01:31:44]} {[%emt 00:00:27]} e5 {[%clk 01:22:46]} {[%emt 00:05:59]} 9. d3
{[%clk 01:26:58]} {[%emt 00:05:17]} Nf8 {[%clk 01:21:06]} {[%emt 00:02:09]} 10.
Nd5 {[%clk 01:25:38]} {[%emt 00:01:50]} Nxd5 {[%clk 01:19:54]} {[%emt
00:01:42]} 11. exd5 {[%clk 01:25:49]} {[%emt 00:00:20]} f5 {[%clk 01:19:00]}
{[%emt 00:01:24]} 12. Nd2 {[%clk 01:22:23]} {[%emt 00:03:55]} b5 {[%clk
01:11:21]} {[%emt 00:08:09]} 13. axb6 {[%clk 01:22:39]} {[%emt 00:00:15]} Nd7
{[%clk 01:11:33]} {[%emt 00:00:18]} 14. Nb3 {[%clk 01:10:47]} {[%emt 00:12:22]}
Nxb6 {[%clk 01:02:10]} {[%emt 00:09:53]} 15. c4 {[%clk 01:10:09]} {[%emt
00:01:08]} O-O {[%clk 01:01:11]} {[%emt 00:01:28]} 16. Na5 {[%clk 01:09:10]}
{[%emt 00:01:31]} g5 {[%clk 00:47:57]} {[%emt 00:13:43]} 17. b4 {[%clk
00:58:47]} {[%emt 00:10:52]} g4 {[%clk 00:45:58]} {[%emt 00:02:30]} 18. bxc5
{[%clk 00:48:21]} {[%emt 00:10:56]} dxc5 {[%clk 00:45:27]} {[%emt 00:01:01]} 19.
Bb2 {[%clk 00:45:02]} {[%emt 00:03:49]} Qh4 {[%clk 00:42:08]} {[%emt 00:03:49]}
20. f3 {[%clk 00:41:56]} {[%emt 00:03:37]} g3 {[%clk 00:33:38]} {[%emt
00:09:00]} 21. hxg3 {[%clk 00:40:51]} {[%emt 00:01:35]} Qxg3 {[%clk 00:33:43]}
{[%emt 00:00:24]} 22. Qe1 {[%clk 00:40:53]} {[%emt 00:00:29]} Qf4 {[%clk
00:31:00]} {[%emt 00:03:12]} 23. Nc6 {[%clk 00:38:41]} {[%emt 00:02:43]} Qg5
{[%clk 00:20:28]} {[%emt 00:11:02]} 24. f4 {[%clk 00:37:07]} {[%emt 00:02:04]}
exf4 {[%clk 00:20:48]} {[%emt 00:00:09]} 25. Bxg7 {[%clk 00:37:33]} {[%emt
00:00:04]} Qxg7 {[%clk 00:18:02]} {[%emt 00:03:16]} 26. Qf2 {[%clk 00:36:00]}
{[%emt 00:02:03]} Re8 {[%clk 00:12:26]} {[%emt 00:06:06]} 27. Bh5 {[%clk
00:33:13]} {[%emt 00:03:16]} Re3 {[%clk 00:11:20]} {[%emt 00:01:37]} 28. Qxf4
{[%clk 00:31:19]} {[%emt 00:02:24]} Rg3 {[%clk 00:08:39]} {[%emt 00:03:11]} 29.
Ra2 {[%clk 00:26:13]} {[%emt 00:05:36]} Bd7 {[%clk 00:07:07]} {[%emt 00:02:02]}
30. Ne7+ {[%clk 00:24:10]} {[%emt 00:02:33]} Kh8 {[%clk 00:07:12]} {[%emt
00:00:24]} 31. Qd6 {[%clk 00:21:45]} {[%emt 00:02:56]} Nc8 {[%clk 00:04:23]}
{[%emt 00:03:19]} 32. Nxc8 {[%clk 00:21:06]} {[%emt 00:01:09]} Rxc8 {[%clk
00:04:49]} {[%emt 00:00:05]} 33. Bf7 {[%clk 00:18:08]} {[%emt 00:03:27]} Rf8
{[%clk 00:00:40]} {[%emt 00:04:38]} 34. Be6 {[%clk 00:15:03]} {[%emt 00:03:35]}
Bxe6 {[%clk 00:00:40]} {[%emt 00:00:30]} 35. dxe6 {[%clk 00:13:01]} {[%emt
00:02:33]} Rg6 {[%clk 00:00:35]} {[%emt 00:00:35]} 36. Qd5 {[%clk 00:11:11]}
{[%emt 00:02:20]} f4 {[%clk 00:00:40]} {[%emt 00:00:25]} 37. Re2 {[%clk
00:10:01]} {[%emt 00:01:40]} Qe7 {[%clk 00:00:34]} {[%emt 00:00:36]} 38. Qe5+
{[%clk 00:09:48]} {[%emt 00:00:43]} Kg8 {[%clk 00:00:59]} {[%emt 00:00:05]} 39.
Rxf4 {[%clk 00:08:40]} {[%emt 00:01:39]} Rxf4 {[%clk 00:01:23]} {[%emt
00:00:06]} 40. Qxf4 {[%clk 00:09:05]} {[%emt 00:00:05]} Rxe6 {[%clk 00:01:39]}
{[%emt 00:00:14]} 41. Qg4+ {[%clk 00:09:15]} {[%emt 00:00:21]} Kf7 {[%clk
00:01:50]} {[%emt 00:00:18]} 42. Qf5+ {[%clk 00:06:35]} {[%emt 00:03:10]} Qf6
{[%clk 00:01:44]} {[%emt 00:00:36]} 43. Qxh7+ {[%clk 00:06:26]} {[%emt
00:00:40]} Ke8 {[%clk 00:01:59]} {[%emt 00:00:14]} 44. Qh5+ {[%clk 00:06:42]}
{[%emt 00:00:14]} Kd7 {[%clk 00:01:43]} {[%emt 00:00:47]} 45. Qd5+ {[%clk
00:06:26]} {[%emt 00:00:45]} Rd6 {[%clk 00:01:27]} {[%emt 00:00:47]} 46. Qb7+
{[%clk 00:06:36]} {[%emt 00:00:20]} Kd8 {[%clk 00:01:51]} {[%emt 00:00:06]} 47.
Qb8+ {[%clk 00:05:20]} {[%emt 00:01:46]} Kd7 {[%clk 00:02:11]} {[%emt
00:00:11]} 48. Qe8+ {[%clk 00:02:55]} {[%emt 00:02:55]} Kc7 {[%clk 00:02:33]}
{[%emt 00:00:08]} 49. Qe3 {[%clk 00:02:26]} {[%emt 00:00:59]} Qd4 {[%clk
00:01:24]} {[%emt 00:01:39]} 50. Qxd4 {[%clk 00:02:36]} {[%emt 00:00:20]} Rxd4
{[%clk 00:01:49]} {[%emt 00:00:04]} 51. Rd2 {[%clk 00:03:01]} {[%emt 00:00:06]}
Kb6 {[%clk 00:26:50]} {[%emt 00:05:29]} 52. Kf2 {[%clk 00:33:12]} {[%emt
00:00:18]} Ka5 {[%clk 00:27:13]} {[%emt 00:00:08]} 53. Ke2 {[%clk 00:32:44]}
{[%emt 00:00:58]} Kb4 {[%clk 00:26:54]} {[%emt 00:00:48]} 54. Ra2 {[%clk
00:30:54]} {[%emt 00:02:21]} Rd6 {[%clk 00:22:08]} {[%emt 00:05:15]} 55. Kd2
{[%clk 00:29:47]} {[%emt 00:01:38]} Kb3 {[%clk 00:21:39]} {[%emt 00:00:58]} 56.
Ra1 {[%clk 00:28:29]} {[%emt 00:01:48]} Rg6 {[%clk 00:21:25]} {[%emt 00:00:44]}
57. g4 {[%clk 00:28:11]} {[%emt 00:00:48]} Rxg4 {[%clk 00:18:39]} {[%emt
00:03:16]} 58. Rxa6 {[%clk 00:28:37]} {[%emt 00:00:05]} Rg2+ {[%clk 00:18:01]}
{[%emt 00:01:07]} 59. Ke3 {[%clk 00:28:59]} {[%emt 00:00:08]} Rg4 {[%clk
00:12:58]} {[%emt 00:05:33]} 60. Rc6 {[%clk 00:28:57]} {[%emt 00:00:32]} Kc3
{[%clk 00:13:06]} {[%emt 00:00:23]} 61. Rxc5 {[%clk 00:25:40]} {[%emt
00:03:47]} Rg3 {[%clk 00:13:11]} {[%emt 00:00:24]} 62. Ke4 {[%clk 00:25:26]}
{[%emt 00:00:44]} Rxd3 {[%clk 00:13:27]} {[%emt 00:00:13]} 63. Rd5 {[%clk
00:25:24]} {[%emt 00:00:33]} Rh3 {[%clk 00:13:39]} {[%emt 00:00:18]} 64. c5
{[%clk 00:25:04]} {[%emt 00:00:50]} Kc4 {[%clk 00:13:35]} {[%emt 00:00:34]} 65.
Rf5 {[%clk 00:25:07]} {[%emt 00:00:27]} Rh4 {[%clk 00:13:38]} {[%emt 00:00:27]}
66. Ke3 {[%clk 00:25:25]} {[%emt 00:00:12]} Rh8 {[%clk 00:13:24]} {[%emt
00:00:44]} 67. c6 {[%clk 00:25:50]} {[%emt 00:00:05]} Rc8 {[%clk 00:13:43]}
{[%emt 00:00:11]} 68. Rf1 {[%clk 00:26:10]} {[%emt 00:00:10]} Rxc6 {[%clk
00:13:36]} {[%emt 00:00:37]} 69. Rc1+ {[%clk 00:26:39]} {[%emt 00:00:02]} Kb5
{[%emt 00:00:17]} 70. Rxc6 {[%clk 00:27:06]} Kxc6 {[%clk 00:14:16]} {[%emt
00:00:05]} 1/2-1/2

[Event "Schack-SM 2023: Veteran-SM 65+"]
[Site "Helsingborg Arena, Mellersta Stenbocksgatan 14, Helsingborg, Sweden"]
[Date "2023.07.03"]
[Round "3.5"]
[White "Wedin, Svante"]
[Black "Holst, Conny"]
[Result "0-1"]
[TimeControl "90 minutes for 40 moves + 30 minutes for the rest of games + 30 seconds per move from move one."]
[BlackTitle "FM"]
[WhiteElo "1932"]
[BlackElo "2156"]

1. e4 {[%clk 01:30:58]} {[%emt 00:00:01]} c5 {[%clk 01:30:51]} {[%emt
00:00:09]} 2. Nf3 {[%clk 01:31:27]} {[%emt 00:00:01]} d6 {[%clk 01:31:08]}
{[%emt 00:00:13]} 3. d4 {[%clk 01:31:55]} {[%emt 00:00:02]} cxd4 {[%clk
01:31:28]} {[%emt 00:00:10]} 4. Nxd4 {[%clk 01:32:20]} {[%emt 00:00:05]} Nf6
{[%clk 01:31:46]} {[%emt 00:00:13]} 5. Nc3 {[%clk 01:32:49]} {[%emt 00:00:01]}
Nc6 {[%clk 01:30:51]} {[%emt 00:01:24]} 6. Bc4 {[%clk 01:30:28]} {[%emt
00:02:51]} Bd7 {[%clk 01:29:56]} {[%emt 00:01:25]} 7. Bb3 {[%clk 01:26:44]}
{[%emt 00:04:14]} g6 {[%clk 01:28:59]} {[%emt 00:01:27]} 8. f3 {[%clk
01:22:26]} {[%emt 00:04:48]} Nxd4 {[%clk 01:23:57]} {[%emt 00:05:32]} 9. Qxd4
{[%clk 01:18:45]} {[%emt 00:04:11]} Bg7 {[%clk 01:23:54]} {[%emt 00:00:33]} 10.
Be3 {[%clk 01:15:52]} {[%emt 00:03:23]} Qa5 {[%clk 01:14:32]} {[%emt 00:09:53]}
11. O-O {[%clk 01:07:20]} {[%emt 00:09:02]} O-O {[%clk 01:12:52]} {[%emt
00:02:09]} 12. Qd2 {[%clk 01:06:49]} {[%emt 00:00:59]} Rfc8 {[%clk 01:07:50]}
{[%emt 00:05:33]} 13. Rad1 {[%clk 00:56:25]} {[%emt 00:10:55]} b5 {[%clk
01:02:00]} {[%emt 00:06:20]} 14. Bh6 {[%clk 00:45:10]} {[%emt 00:11:45]} b4
{[%clk 00:50:54]} {[%emt 00:11:36]} 15. Bxg7 {[%clk 00:32:48]} {[%emt
00:12:52]} Kxg7 {[%clk 00:49:55]} {[%emt 00:01:29]} 16. Ne2 {[%clk 00:27:13]}
{[%emt 00:06:05]} Qc5+ {[%clk 00:46:20]} {[%emt 00:04:05]} 17. Kh1 {[%clk
00:27:26]} {[%emt 00:00:16]} a5 {[%clk 00:44:10]} {[%emt 00:02:41]} 18. c3
{[%clk 00:20:52]} {[%emt 00:07:05]} Bb5 {[%clk 00:31:06]} {[%emt 00:13:33]} 19.
cxb4 {[%clk 00:18:20]} {[%emt 00:03:02]} Qxb4 {[%clk 00:30:09]} {[%emt
00:01:27]} 20. Qxb4 {[%clk 00:18:35]} {[%emt 00:00:15]} axb4 {[%clk 00:30:30]}
{[%emt 00:00:09]} 21. Rd2 {[%clk 00:18:44]} {[%emt 00:00:21]} Bc4 {[%clk
00:28:18]} {[%emt 00:02:42]} 22. Bxc4 {[%clk 00:17:43]} {[%emt 00:01:31]} Rxc4
{[%clk 00:28:38]} {[%emt 00:00:10]} 23. b3 {[%clk 00:18:09]} {[%emt 00:00:05]}
Rc5 {[%clk 00:20:26]} {[%emt 00:08:41]} 24. Nf4 {[%clk 00:13:51]} {[%emt
00:04:48]} Rac8 {[%clk 00:14:51]} {[%emt 00:06:05]} 25. g3 {[%clk 00:13:52]}
{[%emt 00:00:29]} g5 {[%clk 00:14:35]} {[%emt 00:00:47]} 26. Nd3 {[%clk
00:13:56]} {[%emt 00:00:25]} Rb5 {[%clk 00:14:22]} {[%emt 00:00:43]} 27. Rff2
{[%clk 00:13:18]} {[%emt 00:01:08]} g4 {[%clk 00:13:06]} {[%emt 00:01:46]} 28.
Kg2 {[%clk 00:13:11]} {[%emt 00:00:38]} gxf3+ {[%clk 00:10:50]} {[%emt
00:02:46]} 29. Kxf3 {[%clk 00:13:38]} {[%emt 00:00:02]} Rc3 {[%clk 00:09:57]}
{[%emt 00:01:23]} 30. Rfe2 {[%clk 00:11:49]} {[%emt 00:02:19]} Nd7 {[%clk
00:07:18]} {[%emt 00:03:09]} 31. Kg2 {[%clk 00:11:34]} {[%emt 00:00:45]} Ne5
{[%clk 00:05:02]} {[%emt 00:02:47]} 32. Nf4 {[%clk 00:11:22]} {[%emt 00:00:41]}
Rc7 {[%clk 00:02:56]} {[%emt 00:02:36]} 33. Nd5 {[%clk 00:10:13]} {[%emt
00:01:39]} Rcb7 {[%clk 00:03:02]} {[%emt 00:00:24]} 34. Rc2 {[%clk 00:09:50]}
{[%emt 00:00:53]} e6 {[%clk 00:02:05]} {[%emt 00:01:27]} 35. Nf4 {[%clk
00:09:25]} {[%emt 00:00:55]} Rc5 {[%clk 00:01:52]} {[%emt 00:00:43]} 36. Rcd2
{[%clk 00:08:30]} {[%emt 00:01:25]} Rb6 {[%clk 00:02:14]} {[%emt 00:00:09]} 37.
h3 {[%clk 00:04:46]} {[%emt 00:04:13]} Kf6 {[%clk 00:02:15]} {[%emt 00:00:30]}
38. Re1 {[%clk 00:02:05]} {[%emt 00:03:10]} Ke7 {[%clk 00:02:37]} {[%emt
00:00:08]} 39. Ne2 {[%clk 00:02:16]} {[%emt 00:00:19]} h5 {[%clk 00:01:59]}
{[%emt 00:01:08]} 40. Red1 {[%clk 00:01:59]} {[%emt 00:00:47]} Ra5 {[%clk
00:01:16]} {[%emt 00:01:13]} 41. Rc1 {[%clk 00:28:02]} {[%emt 00:04:27]} Rc6
{[%clk 00:26:57]} {[%emt 00:04:49]} 42. Rxc6 {[%clk 00:26:11]} {[%emt
00:02:21]} Nxc6 {[%clk 00:27:14]} {[%emt 00:00:13]} 43. Rc2 {[%clk 00:26:23]}
{[%emt 00:00:17]} Kd7 {[%clk 00:23:53]} {[%emt 00:03:52]} 44. Kf2 {[%clk
00:21:44]} {[%emt 00:05:09]} f5 {[%clk 00:23:11]} {[%emt 00:01:12]} 45. exf5
{[%clk 00:20:18]} {[%emt 00:01:56]} Rxf5+ {[%clk 00:23:26]} {[%emt 00:00:15]}
46. Kg2 {[%clk 00:20:19]} {[%emt 00:00:29]} d5 {[%clk 00:19:16]} {[%emt
00:04:40]} 47. Nf4 {[%clk 00:17:27]} {[%emt 00:03:21]} Re5 {[%clk 00:17:08]}
{[%emt 00:02:39]} 48. Re2 {[%clk 00:14:29]} {[%emt 00:03:28]} Rxe2+ {[%clk
00:17:07]} {[%emt 00:00:31]} 49. Nxe2 {[%clk 00:14:58]} {[%emt 00:00:01]} e5
{[%clk 00:16:39]} {[%emt 00:00:59]} 50. Kf3 {[%clk 00:14:52]} {[%emt 00:00:33]}
Ke6 {[%clk 00:15:11]} {[%emt 00:02:00]} 51. g4 {[%clk 00:13:59]} {[%emt
00:01:23]} hxg4+ {[%clk 00:15:06]} {[%emt 00:00:35]} 52. hxg4 {[%clk 00:14:27]}
{[%emt 00:00:01]} Kf6 {[%clk 00:13:33]} {[%emt 00:02:03]} 53. Kg3 {[%clk
00:11:10]} {[%emt 00:03:47]} Kg5 {[%clk 00:13:15]} {[%emt 00:00:48]} 54. Ng1
{[%clk 00:11:31]} {[%emt 00:00:10]} Nd4 {[%clk 00:13:22]} {[%emt 00:00:24]} 55.
Nh3+ {[%clk 00:11:29]} {[%emt 00:00:31]} Kf6 {[%clk 00:12:01]} {[%emt
00:01:51]} 56. Nf2 {[%clk 00:11:15]} {[%emt 00:00:44]} Ne2+ {[%clk 00:11:07]}
{[%emt 00:01:23]} 57. Kf3 {[%clk 00:10:52]} {[%emt 00:00:54]} Nc3 {[%clk
00:11:04]} {[%emt 00:00:33]} 58. Ke3 {[%clk 00:10:36]} {[%emt 00:00:45]} Nxa2
{[%clk 00:10:49]} {[%emt 00:00:46]} 59. Nd3 {[%clk 00:09:34]} {[%emt 00:01:32]}
d4+ {[%clk 00:07:58]} {[%emt 00:03:21]} 60. Kd2 {[%clk 00:09:26]} {[%emt
00:00:38]} e4 {[%clk 00:07:25]} {[%emt 00:01:03]} 61. Nc5 {[%clk 00:08:43]}
{[%emt 00:01:14]} Nc3 {[%clk 00:06:31]} {[%emt 00:01:23]} 62. g5+ {[%clk
00:08:09]} {[%emt 00:01:04]} Kf5 {[%clk 00:04:23]} {[%emt 00:02:38]} 63. g6
{[%clk 00:07:41]} {[%emt 00:00:57]} Kxg6 {[%clk 00:04:38]} {[%emt 00:00:16]} 64.
Ne6 {[%clk 00:07:11]} {[%emt 00:01:00]} Nb5 {[%clk 00:04:41]} {[%emt 00:00:28]}
65. Nf4+ {[%clk 00:07:03]} {[%emt 00:00:37]} Kf5 {[%clk 00:04:27]} {[%emt
00:00:45]} 66. Nd5 {[%clk 00:07:23]} {[%emt 00:00:09]} Kg4 {[%clk 00:04:13]}
{[%emt 00:00:44]} 67. Nxb4 {[%clk 00:07:15]} {[%emt 00:00:38]} Kf3 {[%clk
00:04:24]} {[%emt 00:00:20]} 68. Nc2 {[%clk 00:06:49]} {[%emt 00:00:54]} Kf2
{[%clk 00:03:32]} {[%emt 00:01:22]} 69. b4 {[%clk 00:05:42]} {[%emt 00:01:38]}
e3+ {[%clk 00:02:38]} {[%emt 00:01:24]} 70. Kd3 {[%clk 00:05:58]} {[%emt
00:00:14]} e2 {[%clk 00:02:09]} {[%emt 00:00:59]} 71. Kd2 {[%clk 00:05:46]}
{[%emt 00:00:42]} Na3 {[%clk 00:02:21]} {[%emt 00:00:18]} 0-1

[Event "Schack-SM 2023: Veteran-SM 50+"]
[Site "Helsingborg Arena, Mellersta Stenbocksgatan 14, Helsingborg, Sweden"]
[Date "2023.07.03"]
[Round "3.5"]
[White "Traff, Par"]
[Black "Svensson, Hakan"]
[Result "0-1"]
[TimeControl "90 minutes for 40 moves + 30 minutes for the rest of games + 30 seconds per move from move one."]
[WhiteElo "1791"]
[BlackElo "2054"]

1. d4 {[%clk 01:30:56]} {[%emt 00:00:03]} d5 {[%clk 01:30:54]} {[%emt
00:00:07]} 2. Nf3 {[%clk 01:31:18]} {[%emt 00:00:08]} Nf6 {[%clk 01:31:18]}
{[%emt 00:00:06]} 3. e3 {[%clk 01:31:33]} {[%emt 00:00:14]} Bg4 {[%clk
01:30:28]} {[%emt 00:01:20]} 4. Be2 {[%clk 01:31:35]} {[%emt 00:00:29]} Nbd7
{[%clk 01:30:03]} {[%emt 00:00:54]} 5. Nbd2 {[%clk 01:31:52]} {[%emt 00:00:14]}
e6 {[%clk 01:30:18]} {[%emt 00:00:15]} 6. O-O {[%clk 01:32:11]} {[%emt
00:00:11]} Bd6 {[%clk 01:30:34]} {[%emt 00:00:13]} 7. b3 {[%clk 01:30:17]}
{[%emt 00:02:25]} Ne4 {[%clk 01:25:16]} {[%emt 00:05:48]} 8. Bb2 {[%clk
01:28:55]} {[%emt 00:01:51]} Nxd2 {[%clk 01:17:31]} {[%emt 00:08:15]} 9. Nxd2
{[%clk 01:26:22]} {[%emt 00:03:02]} Bxe2 {[%clk 01:17:28]} {[%emt 00:00:34]} 10.
Qxe2 {[%clk 01:26:45]} {[%emt 00:00:08]} O-O {[%clk 01:14:51]} {[%emt
00:03:06]} 11. f4 {[%clk 01:24:37]} {[%emt 00:02:38]} f5 {[%clk 01:13:49]}
{[%emt 00:01:32]} 12. c4 {[%clk 01:23:56]} {[%emt 00:01:11]} c6 {[%clk
01:14:04]} {[%emt 00:00:16]} 13. cxd5 {[%clk 01:24:19]} {[%emt 00:00:07]} cxd5
{[%clk 01:13:15]} {[%emt 00:01:19]} 14. a4 {[%clk 01:20:30]} {[%emt 00:04:19]}
Qe7 {[%clk 01:08:07]} {[%emt 00:05:38]} 15. Nf3 {[%clk 01:17:39]} {[%emt
00:03:20]} Nf6 {[%clk 01:06:14]} {[%emt 00:02:23]} 16. Ne5 {[%clk 01:18:01]}
{[%emt 00:00:08]} Ne4 {[%clk 01:05:49]} {[%emt 00:00:55]} 17. Rfc1 {[%clk
01:14:08]} {[%emt 00:04:23]} Rfc8 {[%clk 01:06:12]} {[%emt 00:00:06]} 18. Rc2
{[%clk 01:12:35]} {[%emt 00:02:05]} a6 {[%clk 00:39:40]} {[%emt 00:27:02]} 19.
Rac1 {[%clk 01:10:21]} {[%emt 00:02:42]} Qe8 {[%clk 00:39:00]} {[%emt
00:01:10]} 20. Nd3 {[%clk 01:05:53]} {[%emt 00:04:59]} b6 {[%clk 00:23:10]}
{[%emt 00:16:20]} 21. g3 {[%clk 00:51:20]} {[%emt 00:15:03]} h6 {[%clk
00:21:08]} {[%emt 00:02:33]} 22. b4 {[%clk 00:49:33]} {[%emt 00:02:17]} g5
{[%clk 00:16:11]} {[%emt 00:05:27]} 23. Kh1 {[%clk 00:47:29]} {[%emt 00:02:34]}
Rxc2 {[%clk 00:15:39]} {[%emt 00:01:02]} 24. Qxc2 {[%clk 00:47:40]} {[%emt
00:00:18]} Qh5 {[%clk 00:15:46]} {[%emt 00:00:24]} 25. Qg2 {[%clk 00:46:32]}
{[%emt 00:01:37]} Kh7 {[%clk 00:15:22]} {[%emt 00:00:54]} 26. Nf2 {[%clk
00:35:25]} {[%emt 00:11:38]} Nd2 {[%clk 00:13:11]} {[%emt 00:02:41]} 27. g4
{[%clk 00:34:20]} {[%emt 00:01:34]} Qh4 {[%clk 00:13:08]} {[%emt 00:00:33]} 28.
Rc6 {[%clk 00:33:05]} {[%emt 00:01:46]} Nc4 {[%clk 00:10:20]} {[%emt 00:03:18]}
29. Bc1 {[%clk 00:32:18]} {[%emt 00:01:17]} fxg4 {[%clk 00:08:38]} {[%emt
00:02:12]} 30. Nxg4 {[%clk 00:26:55]} {[%emt 00:05:52]} gxf4 {[%clk 00:08:10]}
{[%emt 00:00:57]} 31. Ne5 {[%clk 00:15:56]} {[%emt 00:11:30]} Rg8 {[%clk
00:07:50]} {[%emt 00:00:48]} 32. Qc2+ {[%clk 00:15:22]} {[%emt 00:01:07]} Kh8
{[%clk 00:05:55]} {[%emt 00:02:23]} 33. Ng6+ {[%clk 00:15:46]} {[%emt
00:00:08]} Rxg6 {[%clk 00:06:19]} {[%emt 00:00:06]} 34. Qxg6 {[%clk 00:16:11]}
{[%emt 00:00:04]} Qe1+ {[%clk 00:06:35]} {[%emt 00:00:13]} 35. Qg1 {[%clk
00:16:34]} {[%emt 00:00:08]} Qxg1+ {[%clk 00:06:41]} {[%emt 00:00:25]} 36. Kxg1
{[%clk 00:16:42]} {[%emt 00:00:21]} fxe3 {[%clk 00:06:42]} {[%emt 00:00:30]} 37.
Bxe3 {[%clk 00:15:01]} {[%emt 00:02:11]} Kg7 {[%clk 00:06:14]} {[%emt
00:00:58]} 38. Bf2 {[%clk 00:10:36]} {[%emt 00:04:54]} Kf7 {[%clk 00:05:04]}
{[%emt 00:01:40]} 39. Be1 {[%clk 00:10:29]} {[%emt 00:00:37]} Kf6 {[%clk
00:02:26]} {[%emt 00:03:08]} 40. b5 {[%clk 00:10:16]} {[%emt 00:00:44]} axb5
{[%clk 00:02:47]} {[%emt 00:00:09]} 41. axb5 {[%clk 00:10:39]} {[%emt
00:00:06]} Kf5 {[%clk 00:02:06]} {[%emt 00:01:11]} 42. Bg3 {[%clk 00:10:22]}
{[%emt 00:00:47]} Bb4 {[%clk 00:01:27]} {[%emt 00:01:08]} 43. Bf2 {[%clk
00:08:09]} {[%emt 00:02:43]} Ba5 {[%clk 00:01:02]} {[%emt 00:00:54]} 44. Rc8
{[%clk 00:07:05]} {[%emt 00:01:36]} Na3 {[%clk 00:00:55]} {[%emt 00:00:38]} 45.
Rh8 {[%clk 00:07:06]} {[%emt 00:00:28]} Kg6 {[%clk 00:01:02]} {[%emt 00:00:24]}
46. Rf8 {[%clk 00:06:16]} {[%emt 00:01:19]} Nxb5 {[%clk 00:00:40]} {[%emt
00:00:52]} 47. Rf3 {[%clk 00:06:13]} {[%emt 00:00:32]} Nd6 {[%clk 00:29:50]}
{[%emt 00:01:19]} 48. Kf1 {[%clk 00:36:24]} {[%emt 00:00:21]} Nf5 {[%clk
00:26:14]} {[%emt 00:04:04]} 49. Ke2 {[%clk 00:36:20]} {[%emt 00:00:36]} b5
{[%clk 00:20:11]} {[%emt 00:06:34]} 50. Ra3 {[%clk 00:33:01]} {[%emt 00:03:48]}
Bc7 {[%clk 00:19:41]} {[%emt 00:01:00]} 51. Rb3 {[%clk 00:31:44]} {[%emt
00:01:47]} Bxh2 {[%clk 00:19:35]} {[%emt 00:00:37]} 52. Rxb5 {[%clk 00:32:03]}
{[%emt 00:00:11]} Bg3 {[%clk 00:18:49]} {[%emt 00:01:15]} 53. Rb4 {[%clk
00:32:16]} {[%emt 00:00:18]} Bxf2 {[%clk 00:17:25]} {[%emt 00:01:53]} 54. Kxf2
{[%clk 00:32:34]} {[%emt 00:00:12]} Kg5 {[%clk 00:17:46]} {[%emt 00:00:09]} 55.
Kf3 {[%clk 00:29:55]} {[%emt 00:03:09]} h5 {[%clk 00:18:09]} {[%emt 00:00:07]}
56. Ra4 {[%clk 00:30:05]} {[%emt 00:00:21]} h4 {[%clk 00:18:31]} {[%emt
00:00:07]} 57. Kg2 {[%clk 00:29:45]} {[%emt 00:00:49]} Kf4 {[%clk 00:18:42]}
{[%emt 00:00:20]} 58. Kh3 {[%clk 00:30:02]} {[%emt 00:00:13]} Ke4 {[%clk
00:18:46]} {[%emt 00:00:26]} 59. Rb4 {[%clk 00:30:06]} {[%emt 00:00:26]} Nxd4
{[%clk 00:18:39]} {[%emt 00:00:36]} 60. Kxh4 {[%clk 00:30:15]} {[%emt
00:00:21]} Ke3 {[%clk 00:17:36]} {[%emt 00:01:33]} 61. Kg3 {[%clk 00:29:35]}
{[%emt 00:01:10]} e5 {[%clk 00:17:32]} {[%emt 00:00:34]} 62. Kg2 {[%clk
00:29:40]} {[%emt 00:00:25]} e4 {[%clk 00:17:30]} {[%emt 00:00:33]} 63. Kf1
{[%clk 00:29:51]} {[%emt 00:00:19]} Kd3 {[%clk 00:17:37]} {[%emt 00:00:22]} 64.
Ra4 {[%clk 00:27:42]} {[%emt 00:02:41]} Nc2 {[%clk 00:17:31]} {[%emt 00:00:32]}
65. Ra8 {[%clk 00:25:37]} {[%emt 00:02:38]} e3 {[%clk 00:16:46]} {[%emt
00:01:14]} 66. Re8 {[%clk 00:25:43]} {[%emt 00:00:25]} Kd2 {[%clk 00:16:17]}
{[%emt 00:00:57]} 0-1